Cogmind - Beta 17 @@@ ROGUE MODE // 2026.07.31 @ 18:32:19 Player: LanceLander Result: Destroyed by S-10 Pest with Light Assault Rifle Performance ------------- Evolutions (1) 500 Regions Visited (4) 800 Robots Destroyed (32) 160 Value Destroyed (929) 929 Prototype IDs (7) 140 Alien Tech Used (0) 0 Bonus (0) 0 TOTAL SCORE: 2529 Bonus ------- None Cogmind --------- Core Integrity 0/400 Matter 284/300 Energy 265/265 System Corruption 0% Temperature Cool (0) Movement Rolling (125) Ox3 Location -9/Storage Parts ------- > --- POWER (1) -------- Improved Ion Engine > --- PROPULSION (3) --- Light Treads Light Treads Wheel > --- UTILITY (3) ------ Heat Sink Large Storage Unit Light Armor Plating > --- WEAPON (2) ------- Light Assault Rifle Improved Assault Rifle > --- INVENTORY (15) --- Ion Engine Light Nuclear Core Light Treads Aluminum Leg Heat Sink Heat Sink Small Storage Unit Hacking Suite Small Laser Improved Medium Laser Datajack Flail Peak State ------------ > --- POWER ------------ Light Ion Engine > --- PROPULSION ------- Aluminum Leg Aluminum Leg Aluminum Leg > --- UTILITY ---------- Small Storage Unit Shield Generator Hacking Suite > --- WEAPON ----------- Heavy EM Pulse Gun Improved Assault Rifle > --- INVENTORY -------- Aluminum Leg Aluminum Leg Wheel Large Storage Unit Small Laser Light Assault Rifle Light Assault Rifle Datajack [Rating: 15] Favorites ----------- Power Light Ion Engine Engine Light Ion Engine Propulsion Aluminum Leg Treads Light Treads Leg Aluminum Leg Wheel Wheel Flight Unit Flight Unit Utility Small Storage Unit Device Heat Sink Storage Small Storage Unit Processor Visual Processing Unit Hackware Hacking Suite Protection Light Armor Plating Weapon Light Assault Rifle Energy Gun Medium Laser Ballistic Gun Light Assault Rifle Impact Weapon Flail Build | -11 -10 -10 -9 -9 ------- Run | Yrd Mat Min Mat Sto Slots Evolved 2 | . . . 2 . Power . | . . . . . Propulsion 1 | . . . 1 . Utility 1 | . . . 1 . Weapon . | . . . . . Parts Attached 43 | 7 13 3 18 2 Power 5 | 2 1 1 1 . Engine 5 | 2 1 1 1 . Core . | . . . . . Reactor . | . . . . . Propulsion 16 | 2 6 1 7 . Treads 3 | . . . 3 . Leg 10 | 2 6 1 1 . Wheel 2 | . . . 2 . Hover . | . . . . . Flight 1 | . . . 1 . Utility 11 | 1 3 . 5 2 Device 5 | . 1 . 3 1 Storage 2 | 1 . . 1 . Processor 1 | . 1 . . . Hackware 1 | . 1 . . . Protection 2 | . . . 1 1 Artifact . | . . . . . Weapon 11 | 2 3 1 5 . Energy Gun 4 | 1 . 1 2 . Energy Cannon . | . . . . . Ballistic Gun 6 | 1 3 . 2 . Ballistic Cannon . | . . . . . Launcher . | . . . . . Special Weapon . | . . . . . Impact Weapon 1 | . . . 1 . Slashing Weapon . | . . . . . Piercing Weapon . | . . . . . Special Melee Weapon . | . . . . . Unidentified Prototypes . | . . . . . Corrupted Parts 1 | . . 1 . . System Corruption 2 | . . 2 . . Parts Lost 22 | . 6 2 14 . Power 3 | . 2 . 1 . Propulsion 8 | . 2 . 6 . Utility 5 | . 1 . 4 . Weapon 6 | . 1 2 3 . Highest Loss Streak 7 | . 3 1 7 . To Critical Strikes . | . . . . . Average Backups 7 | 1 6 7 7 10 Power . | . . . . 2 Propulsion 1 | . 1 3 1 1 Utility 1 | . 1 1 2 3 Weapon 2 | . 2 1 2 3 Tool/Special . | . . . . . Unused Backups 11 | . 1 . 1 9 Power 2 | . . . . 2 Propulsion 2 | . . . . 2 Utility 4 | . 1 . 1 2 Weapon 2 | . . . . 2 Tool/Special 1 | . . . . 1 Average Slot Usage (%) 94 | . 95 100 88 98 Engine 11 | . 14 14 8 11 Treads 5 | . . . 11 22 Leg 18 | . 27 28 8 . Wheel 3 | . . . 8 11 Device 7 | . 8 . 8 11 Storage 12 | . 14 14 11 11 Hackware 3 | . . 14 3 . Protection 2 | . . . 5 9 Energy Gun 5 | . 5 13 4 . Ballistic Gun 19 | . 22 14 16 22 Peak Build Rating 15 | 6 9 9 15 13 Average Rating 9 | 4 7 8 11 12 On Entrance 7 | . 6 9 9 12 Avg Prop Armor Cover (%) 6 | . . . 4 15 Naked Turns . | . . . . . Heaviest Build 35 | 13 13 11 35 35 Greatest Support 40 | 20 20 20 40 10 Greatest Overweight (x) 3 | . 1 . 3 3 Average Overweight (x) . | . . . . 3 Largest Inventory Capacity 15 | 8 8 8 15 15 Average Capacity 9 | 7 8 8 10 15 Most Carried 12 | 3 8 8 11 12 Average Carried 7 | 1 6 7 7 10 Final Capacity 15 | 8 8 8 15 15 Final Carried 12 | 3 7 8 11 12 Class Distribution -------------------- 57% | Scavenger-Mutant 42% | Mutant Dominant Class ---------------- Mutant | -10/Materials Scavenger-Mutant | -10/Mines Scavenger-Mutant | -9/Materials Scavenger-Mutant | -9/Storage Resources | -11 -10 -10 -9 -9 ----------- Run | Yrd Mat Min Mat Sto Matter Collected 1024 | 208 406 80 298 32 Remotely . | . . . . . Salvage Created 1123 | . 397 121 559 46 Parts 60 | . 18 8 31 3 Haulers Intercepted . | . . . . . Recyclers Shooed . | . . . . . Parts Field Recycled . | . . . . . Retrieved Matter . | . . . . . Parts Self-Destructed . | . . . . . Prevented . | . . . . . Parts Restored . | . . . . . Kills | -11 -10 -10 -9 -9 ------- Run | Yrd Mat Min Mat Sto Combat Hostiles Destroyed 28 | . 10 4 13 1 Melee 1 | . . . 1 . Guns 27 | . 10 4 12 1 Classes Destroyed 5 | . 4 . 1 . Operator 3 | . 1 . 2 . Watcher 1 | . 1 . . . Swarmer 9 | . 3 2 4 . Grunt 15 | . 7 2 5 1 Sentry 4 | . . . 4 . Best Kill Streak 5 | . 4 4 5 1 Combat Bots Only 5 | . 3 4 5 1 Max Kills in Single Turn 1 | . 1 1 1 1 Gunslinging . | . . . . . Exploded . | . . . . . Melee 1 | . . . 1 . Uniques/NPCs Destroyed . | . . . . . Combat | -11 -10 -10 -9 -9 -------- Run | Yrd Mat Min Mat Sto Hostile Shots Fired 276 | . 70 33 154 19 Missed 57 | . 9 4 37 7 Hits 219 | . 61 29 117 12 Projectile 219 | . 61 29 117 12 Critical Strikes 8 | . 1 . 6 1 Damage Taken 2774 | . 890 293 1487 104 Core 621 | . 136 82 388 15 Absorbed by Shields 43 | . . . 43 . Core Remaining (%) 56 | 100 . 12 . . Volleys Fired 125 | . 55 16 48 6 Largest 2 | . 2 2 2 2 Hottest 70 | . 70 70 68 43 Shots Fired 246 | . 108 31 95 12 Gun 246 | . 108 31 95 12 Cannon . | . . . . . Launcher . | . . . . . Special . | . . . . . Kinetic 199 | . 96 17 74 12 Thermal 24 | . 12 1 11 . Explosive . | . . . . . Electromagnetic 23 | . . 13 10 . Robot Hit Streak 26 | . 10 9 26 3 Robot Miss Streak 5 | . 4 5 5 1 Penetration Max . | . . . . . Secondary Targets 2 | . 1 1 . . Max Gunslinging Chain 1 | . 1 1 . . Shots Hit Robots 160 | . 65 19 68 8 Core Hits 60 | . 21 9 29 1 Critical Kills . | . . . . . Critical Parts Destroyed . | . . . . . Critical Strikes . | . . . . . Melee Attacks 19 | . . . 19 . Impact 19 | . . . 19 . Slashing . | . . . . . Piercing . | . . . . . Sneak Attacks . | . . . . . Combat Hostiles . | . . . . . Follow-up Attacks . | . . . . . Damage Inflicted 1948 | . 841 205 801 101 Guns 1806 | . 841 200 664 101 Cannons . | . . . . . Explosions . | . . . . . Melee 137 | . . . 137 . Ramming 5 | . . 5 . . Kinetic 1427 | . 743 87 496 101 Thermal 198 | . 98 . 100 . Explosive . | . . . . . Electromagnetic 181 | . . 113 68 . Impact 137 | . . . 137 . Slashing . | . . . . . Piercing . | . . . . . Highest Corruption 2 | . . 2 . . Average Corruption 2 | . . 2 . . Corruption Purged . | . . . . . Corruption Blocked . | . . . . . Overload Shots . | . . . . . Overflow Damage . | . . . . . Projectiles . | . . . . . Explosions . | . . . . . Melee . | . . . . . Knockbacks . | . . . . . Impact . | . . . . . Kinetic . | . . . . . Secondary . | . . . . . Self-Inflicted Damage . | . . . . . Shots . | . . . . . Rammed . | . . . . . Targets Rammed 3 | . . 3 . . Kicked 3 | . . 3 . . Crushed . | . . . . . Highest Temperature 232 | . 232 109 93 . Average Temperature 52 | . 82 47 24 . Received Heat Transfer 1208 | . 393 75 713 27 Siege Activations . | . . . . . Martial Activations . | . . . . . Shielding Activations . | . . . . . Robots Disrupted . | . . . . . Combat Hostiles . | . . . . . Robots Corrupted . | . . . . . Combat Hostiles . | . . . . . Parts Fried . | . . . . . Impact Corruptions . | . . . . . Robots Melted . | . . . . . Combat Hostiles . | . . . . . Parts Melted 1 | . 1 . . . Heat Transferred 521 | . 296 . 225 . Parts Sabotaged . | . . . . . Parts Stolen . | . . . . . Parts Stripped . | . . . . . Power Chain Reactions . | . . . . . Alert | -11 -10 -10 -9 -9 ------- Run | Yrd Mat Min Mat Sto Maximum Alert Level . | . . . . . Low Security (%) 100 | 100 100 100 100 100 Level 1 . | . . . . . Level 2 . | . . . . . Level 3 . | . . . . . Level 4 . | . . . . . Level 5 . | . . . . . High Security . | . . . . . Max Security . | . . . . . Peak Influence 135 | . 62 92 135 30 Initial 24 | . . 12 . 24 Average 36 | . 18 36 64 11 Influence Increases 923 | . 309 120 464 30 Destroy 0b10 Robot/C 560 | . 200 80 260 20 Destroy 0b10 Robot/NC 20 | . 10 . 10 . Destroy Leader 142 | . 42 10 80 10 Successful Hack 29 | . 25 . 4 . Disable Machine 30 | . . 15 15 . Destroy Structure 7 | . 2 . 5 . Partial Spotted 15 | . . . 15 . Lose Combat Pursuer 120 | . 30 15 75 . Influence Decreases 923 | . 277 152 406 88 Entered New Map 54 | . . 20 . 34 Time Decay 673 | . 241 112 266 54 Lost Part 196 | . 36 20 140 . Squads Dispatched 4 | . 1 . 2 1 Investigation 1 | . . . 1 . Extermination . | . . . . . Reinforcement 3 | . 1 . 1 1 Assault . | . . . . . Garrison . | . . . . . Intercept . | . . . . . Searches Triggered . | . . . . . Construction Impeded . | . . . . . Haulers Reinforced . | . . . . . Active Scanning Responses . | . . . . . Cargo Convoy Interrupts . | . . . . . Stealth | -11 -10 -10 -9 -9 --------- Run | Yrd Mat Min Mat Sto Distress Signals 2 | . 1 . 1 . Communications Jammed . | . . . . . Distress Signals . | . . . . . Times Spotted 62 | . 21 6 29 6 Peak Tracking Total 8 | . 4 6 8 4 Tactical Retreats 6 | . 1 1 4 . Traps | -11 -10 -10 -9 -9 ------- Run | Yrd Mat Min Mat Sto Traps Triggered 2 | . 2 . . . Indirectly . | . . . . . Trap Hack Attempts . | . . . . . Triggered . | . . . . . Disarmed 6 | . 6 . . . Reprogrammed . | . . . . . Reused . | . . . . . Traps Extracted . | . . . . . Installed . | . . . . . Triggered . | . . . . . Machines | -11 -10 -10 -9 -9 ---------- Run | Yrd Mat Min Mat Sto Machines Disabled 2 | . . 1 1 . Max in Single Turn 1 | . . 1 1 . Machines Repaired . | . . . . . Machines Dismantled . | . . . . . Machines Sabotaged . | . . . . . Overloaded Fab Kills . | . . . . . Hacking | -11 -10 -10 -9 -9 --------- Run | Yrd Mat Min Mat Sto Machines Accessed 9 | . 5 . 4 . Terminals 8 | . 4 . 4 . Fabricators . | . . . . . Repair Stations . | . . . . . Recycling Units 1 | . 1 . . . Scanalyzers . | . . . . . Garrison Access . | . . . . . Total Hacks 32 | . 19 . 13 . Successful 14 | . 9 . 5 . Failed 17 | . 9 . 8 . Catastrophic 1 | . . . 1 . Database Lockouts 1 | . 1 . . . Manual 7 | . 6 . 1 . Terminals 30 | . 17 . 13 . Fabricators . | . . . . . Repair Stations . | . . . . . Recycling Units 2 | . 2 . . . Scanalyzers . | . . . . . Garrison Access . | . . . . . Terminal Hacks 11 | . 7 . 4 . Part Schematic 1 | . 1 . . . Prototype ID Bank 4 | . 2 . 2 . Emergency Access Points 1 | . . . 1 . Alert Level 1 | . . . 1 . Locate Traps 1 | . 1 . . . Disarm Traps 1 | . 1 . . . Hauler Manifests 1 | . 1 . . . Registered Prototypes 1 | . 1 . . . Fabricator Hacks . | . . . . . Repair Station Hacks . | . . . . . Recycling Unit Hacks 2 | . 2 . . . Report Inventory 1 | . 1 . . . Retrieve Components 1 | . 1 . . . Scanalyzer . | . . . . . Garrison Access Hacks . | . . . . . Unauthorized Hacks 1 | . . . 1 . Terminals 1 | . . . 1 . Botnet 1 | . . . 1 . Fabricators . | . . . . . Repair Stations . | . . . . . Recycling Units . | . . . . . Scanalyzers . | . . . . . Garrison Access . | . . . . . Data Cores Recovered 1 | . . . 1 . Used . | . . . . . Hacking Detections 7 | . 3 . 4 . Full Trace Events 1 | . . . 1 . Feedback Events 1 | . . . 1 . Hackware Fried 1 | . . . 1 . Feedback Blocked . | . . . . . Robot Schematics Acquired . | . . . . . Robots Built . | . . . . . Authchips . | . . . . . Time . | . . . . . Total Robot Build Rating . | . . . . . Part Schematics Acquired 1 | . 1 . . . Parts Built . | . . . . . Authchips . | . . . . . Time . | . . . . . Total Part Build Rating . | . . . . . Part Studies Acquired . | . . . . . Parts Repaired . | . . . . . Time . | . . . . . Parts Recycled . | . . . . . Recycled Matter . | . . . . . Retrieved Matter . | . . . . . Retrieved Components 2 | . 2 . . . Parts Scanalyzed . | . . . . . Part Schematics Acquired . | . . . . . Parts Damaged . | . . . . . Bothacking | -11 -10 -10 -9 -9 ------------ Run | Yrd Mat Min Mat Sto Used RIF Installer . | . . . . . Robots Hacked . | . . . . . Non-combat . | . . . . . Combat . | . . . . . Robot Hacks Applied . | . . . . . Relay Couplers Released . | . . . . . Fabnet Peak Effective % . | . . . . . Robots Rewired . | . . . . . Allies Hacked . | . . . . . Hacks Repelled . | . . . . . Allies | -11 -10 -10 -9 -9 -------- Run | Yrd Mat Min Mat Sto Total Allies . | . . . . . Largest Group . | . . . . . Highest-Rated Group . | . . . . . Highest-Rated Ally . | . . . . . Total Orders . | . . . . . Ally Attacks . | . . . . . Total Damage . | . . . . . Kills . | . . . . . Allies Corrupted . | . . . . . Allies Melted 1 | . . 1 . . Intel | -11 -10 -10 -9 -9 ------- Run | Yrd Mat Min Mat Sto Active Infowar (turns) 105 | . 105 . . . Optics 105 | . 105 . . . Robot Analysis Total . | . . . . . Derelict Logs Recovered 2 | . . 2 . . Drone Launches . | . . . . . Drone Recoveries . | . . . . . Exploration | -11 -10 -10 -9 -9 ------------- Run | Yrd Mat Min Mat Sto Turns Passed 2121 | 72 885 285 739 140 Spaces Moved 1143 | 52 522 147 366 56 Core 3 | 3 . . . . Treads 182 | . . . 182 . Legs 827 | 49 522 147 109 . Wheels 131 | . . . 75 56 Hover . | . . . . . Flight . | . . . . . Fastest Speed 50 | 50 120 120 80 125 Average Speed 124 | 115 120 120 134 125 Slowest Speed 190 | 120 190 120 160 125 Overloaded Moves . | . . . . . Propulsion Burnouts . | . . . . . Robots Hopped . | . . . . . Potential Cave-ins . | . . . . . Cave-ins Triggered . | . . . . . Exploration Rate (%) 31 | 4 76 19 43 13 Regions Visited 4 Branch Regions 2 Pre-discovered Areas . | . . . . . Known Exits Taken . | . . . . . Unknown Exits Taken 4 | 1 1 1 1 . Scrap Searched . | . . . . . Spaces Dug 5 | . . . 5 . Terrain Destroyed 5 | . . . 5 . Melee 5 | . . . 5 . Projectile . | . . . . . AOE . | . . . . . Terrain Rammed . | . . . . . Walls Destroyed . | . . . . . Machines Disabled . | . . . . . Actions | -11 -10 -10 -9 -9 --------- Run | Yrd Mat Min Mat Sto Total 1574 | 60 676 227 496 115 Wait 199 | . 70 54 25 50 Move 1139 | 51 521 146 365 56 Hop . | . . . . . Pick Up 25 | 2 8 3 11 1 Fast Attach 18 | 6 3 . 9 . Attach 17 | . 6 2 8 1 Detach 2 | . 1 . 1 . Swap 16 | 1 6 2 6 1 Drop 11 | . 6 1 4 . Fire 125 | . 55 16 48 6 Melee 19 | . . . 19 . Ram . | . . . . . Kick 3 | . . 3 . . Crush . | . . . . . Escape Stasis . | . . . . . Rewire . | . . . . . Trap . | . . . . . Miscellaneous . | . . . . . Route ------- -11/Scrapyard -10/Materials (discovered 4 exits: *Mat x3 / [*Min]) -10/Mines -9/Materials (discovered 3 exits: [*Min x2] / [*Sto]) -9/Storage History --------- Turn | Location | Event 4 | -11/Scrapyard | Discovered new exit (range 15) 73 | -11/Scrapyard | Entered Materials 321 | -10/Materials | Build established: Mutant 430 | -10/Materials | Discovered new exit (range 14) 463 | -10/Materials | Central database locked down 610 | -10/Materials | Discovered new exit (range 5) 842 | -10/Materials | Core integrity fell below 50% 892 | -10/Materials | Lost 3 parts (1n1u1w) 897 | -10/Materials | Discovered new exit (range 14) 933 | -10/Materials | Discovered new exit (range 5) 958 | -10/Materials | Entered Mines 995 | -10/Mines | Core integrity fell below 20% 1031 | -10/Mines | Discovered new exit (range 11) 1045 | -10/Mines | Build established: Scavenger-Mutant 1081 | -10/Mines | Learned Materials stockpile data 1086 | -10/Mines | Learned Materials terminal intel 1123 | -10/Mines | Assembled infested the area 1243 | -10/Mines | Entered Materials 1243 | -9/Materials | Evolved 2 slots: Propulsion x1, Utility x1 1245 | -9/Materials | Loaded intel: 12 terminal locations 1457 | -9/Materials | Lost 7 parts (1p4n1u1w) 1461 | -9/Materials | Core integrity fell below 50% 1501 | -9/Materials | Hacking Suite fried by hacking feedback 1584 | -9/Materials | Core integrity fell below 20% 1670 | -9/Materials | Discovered new exit (range 11) 1760 | -9/Materials | Discovered new exit (range 11) 1910 | -9/Materials | Discovered new exit (range 7) 1982 | -9/Materials | Entered Storage 2122 | -9/Storage | Destroyed by S-10 Pest with Light Assault Rifle Last Messages --------------- M001. 01873_ O-16 Technician destroyed. 01876_ K-01 Serf collects debris. 01885_ Acquired 15 matter. 01887_ K-01 Serf collects debris. 01889_ Acquired Hacking Suite. 01907_ K-01 Serf cleans the Terminal. 01910_ EXIT=FOUND 01920_ W-16 Scout sends out distress signal. 01960_ Lgt. Armor Plating destroyed. LOCATION=UNKNOWN GOAL=ESCAPE 01983_ O-16 Technician: "IFF HANDSHAKE FAILED. SECURING TERMINAL." 01988_ ALERT: Hostiles spotted, dispatching reinforcements to Terminal S012. 02075_ G-34 Mercenary destroyed. 02080_ Acquired 22 matter. 02082_ Acquired Aluminum Leg. 02087_ Acquired 10 matter. 02111_ Critical hit (Burn: +37). Map ----- +----------------------------------------------------+ | | | | | | | ?????????????????????????????????????? | | ?????????????????????????????????????? | | ?????????????????????????????????????? | | ?????????????????????????????????????? | | ?????????????????????????????????????? | | ?????????????????????????????????????? | | ?????????????????????????????????????? | | ?????????????????????????????????????? | | ??????????????????????###############? | | ??????????????????????# # #? | | ??????????????????????# # """ #? | | ??????????????????????# # """ #? | | ??????????????????????# # """ #? | | ??????????????????????# # #? | | ??????????????????????# %+[ """ #? | | ??????????????????????# # """ #? | | ??????????????????????# # """ #? | | ??????????????????????# # #? | | ??????????????#???????# ##########? | | ??????????#####T####### #????????? | | ????????? #????????? | | ????????? ^ #????????? | | ????????? """@ #????????? | | ????????# "T"ss #????????? | | ???????? s##????????? | | ???????? "#????????? | | ???????? "#????????? | | ???????? """ "#????????? | | ?????????#####+##+## """ T#????????? | | ???????????????????# """ "#????????? | | ???????????????????# "#????????? | | ???????????????????# "#????????? | | ???????????????????# """ ##????????? | | ???????????????????# """ #?????????? | | ???????????????????# ???" +?????????? | | ????????????????????????? #?????????? | | ????????????????????????? #?????????? | | ????????????????????????? #?????????? | | ????????????????????????? #?????????? | | ????????????????????????? ??????????? | | ?????????????????????????????????????? | | ?????????????????????????????????????? | | ?????????????????????????????????????? | | ?????????????????????????????????????? | | ?????????????????????????????????????? | | ?????????????????????????????????????? | | ?????????????????????????????????????? | +----------------------------------------------------+ Best States ------------- Heat Dissipation 38 Energy Generation 12 Energy Capacity 265 Matter Stores 300 Matter Capacity 300 Sight Range 18 Terrain Scan Density 10 Armor Coverage 150 Evasion (%) 55 Recoil Reduction 2 Offensive Hacking 10 Item Schematics ----------------- Med. Storage Unit | -10/Materials | Hacked Robot Schematics ------------------ None Fabricated ------------ Nothing Repaired ---------- Nothing Studied --------- None Alien Tech Used ----------------- None Achievements -------------- None Challenges ------------ None Game ------ Seed DefenseSuspensionShield Manual? 0 Play Time 00:23:03 Cumulative 93.8 hours Start 2026.07.28 @ 20:56:47 End 2026.07.31 @ 18:32:19 Sessions 3 Manual Loads 0 Difficulty Rogue Special Mode None Game No. 54 Rogue 54 Adventurer 0 Explorer 0 Win Type - Total 1 Types 1/0/0/0/0/0/0/0/0/0 Lore% 54 Gallery% 51 Achievement% 42 Wizard Run 0 Options --------- Layout 0 ASCII 0 Keyboard 1 Movement Mouse Keybinds 0 Fullscreen 1 Font 24/Smallcaps Map View 76x50 Zoom Use 0% Tactical HUD 1 Map Filters NONE Filters NONE Steam 1 RUN: 1dc9cb5c-40b8-4565-9566-f00daa6272ca